Body Name,Document Number,Service,Type of Expenditure,Invoice Date,Supplier Name,Cost to the Council (Amount Exc VAT),Month
Erewash Borough Council,222269,Homelessness,Temporary Accommodation,16/11/20,A38 WOODLANDS,462,Nov-21
Erewash Borough Council,222104,Homelessness,Temporary Accommodation,09/11/20,A38 WOODLANDS,462,Nov-21
Erewash Borough Council,222268,Homelessness,Temporary Accommodation,23/11/20,A38 WOODLANDS,462,Nov-21
Erewash Borough Council,222037,Street Scene,Repairs and Maintenance,30/10/20,ALFA TAIL LIFTS LIMITED,230.4,Nov-21
Erewash Borough Council,221978,Treasury Management and Bank Charges,Allpay/Post Office Charges,31/10/20,ALLPAY LIMITED,1032.89,Nov-21
Erewash Borough Council,221668,Cemeteries,Contracted Services,20/10/20,ALPHA DRAIN SERVICES,1840,Nov-21
Erewash Borough Council,221778,Property and Estates,Reactive Maintenance,28/10/20,ALPHA PARTNER (MIDLANDS)  LIMITED,804.09,Nov-21
Erewash Borough Council,221777,Property and Estates,Planned Preventative Maintenance,28/10/20,ALPHA PARTNER (MIDLANDS)  LIMITED,1707.55,Nov-21
Erewash Borough Council,221769,Green Space,Contracted Services,19/10/20,ALPHA PARTNER (MIDLANDS)  LIMITED,530,Nov-21
Erewash Borough Council,221770,Property and Estates,Planned Preventative Maintenance,19/10/20,ALPHA PARTNER (MIDLANDS)  LIMITED,889,Nov-21
Erewash Borough Council,221771,Property and Estates,Planned Preventative Maintenance,19/10/20,ALPHA PARTNER (MIDLANDS)  LIMITED,440,Nov-21
Erewash Borough Council,222270,ICT Support Services,Office Paper,20/10/20,ANTALIS DOCUMENT SUPPLIES,241,Nov-21
Erewash Borough Council,221779,Reprographics,Printing and Stationery,18/09/20,ANTALIS DOCUMENT SUPPLIES,294.78,Nov-21
Erewash Borough Council,221847,Building Control - Fee Earning,Building Control Fees - EBC,04/11/20,REDACTED PERSONAL DATA,550,Nov-21
Erewash Borough Council,221891,Green Space,Repairs and Maintenance,06/11/20,AUTOGUIDE EQUIPMENT LTD,223.66,Nov-21
Erewash Borough Council,221809,Household/Residual Waste Collection,Repairs and Maintenance,30/09/20,AWSWORTH MOTOR CO LTD,1181.3,Nov-21
Erewash Borough Council,221914,ICT Support Services,Telephones,22/10/20,BRITISH TELECOMMUNICATIONS PLC,1742.99,Nov-21
Erewash Borough Council,221645,Street Scene,Repairs and Maintenance,07/10/20,BUCHER MUNICIPAL LTD,322.22,Nov-21
Erewash Borough Council,221747,Occupational Health and Welfare,Occupational Health Service,10/07/20,BUPA HEALTH CLINICS,406.56,Nov-21
Erewash Borough Council,222099,Homelessness,Homelessness-Lease Properties,03/11/20,BUSINESS & COMMERCIAL SERVICES.,2254.17,Nov-21
Erewash Borough Council,221606,Noise Control,General Equipment,14/10/20,CAMPBELL ASSOCIATES,830,Nov-21
Erewash Borough Council,221767,ICT Support Services,Maintenance of Equipment,26/10/20,CCS MEDIA LIMITED,765.3,Nov-21
Erewash Borough Council,221772,Property and Estates,Repairs and Maintenance,21/10/20,CCS MEDIA LIMITED,32.88,Nov-21
Erewash Borough Council,221610,ICT Support Services,General Equipment,15/10/20,CCS MEDIA LIMITED,1569.21,Nov-21
Erewash Borough Council,221772,ICT Support Services,General Equipment,21/10/20,CCS MEDIA LIMITED,246.6,Nov-21
Erewash Borough Council,221608,Housing Strategy,Consultants Fees,19/10/20,CCS MEDIA LIMITED,1145.64,Nov-21
Erewash Borough Council,221608,Commissioned Projects,Fees Costs and Expenses,19/10/20,CCS MEDIA LIMITED,1145.64,Nov-21
Erewash Borough Council,221608,ICT Support Services,General Equipment,19/10/20,CCS MEDIA LIMITED,6873.84,Nov-21
Erewash Borough Council,221608,Hackney Carriages / Private Hire,Materials/Consumables,19/10/20,CCS MEDIA LIMITED,1145.64,Nov-21
Erewash Borough Council,221772,Commissioned Projects,Fees Costs and Expenses,21/10/20,CCS MEDIA LIMITED,32.88,Nov-21
Erewash Borough Council,221768,ICT Support Services,General Equipment,23/10/20,CCS MEDIA LIMITED,331.84,Nov-21
Erewash Borough Council,221772,Hackney Carriages / Private Hire,Materials/Consumables,21/10/20,CCS MEDIA LIMITED,32.88,Nov-21
Erewash Borough Council,221772,Housing Strategy,Consultants Fees,21/10/20,CCS MEDIA LIMITED,32.88,Nov-21
Erewash Borough Council,221608,Property and Estates,Repairs and Maintenance,19/10/20,CCS MEDIA LIMITED,1145.64,Nov-21
Erewash Borough Council,221935,Property and Estates,Subscriptions,24/08/20,CHARTERED INSTITUTE OF PUBLIC FINANCE & ACCOUNTANCY,1125,Nov-21
Erewash Borough Council,221985,ICT Support Services,Mobile Phones,01/11/20,CLASS AFFINITY PROJECTS LTD,1504.04,Nov-21
Erewash Borough Council,222165,Property and Estates,PPM Mechanical and Equipment,03/11/20,CONCEPT ELEVATORS (UK) LTD,360.67,Nov-21
Erewash Borough Council,221981,Civic Duties Hospitality,Remembrance Services,11/11/20,CONTROLLED EVENT SOLUTIONS,1180.5,Nov-21
Erewash Borough Council,221939,Community Grants,Grants and Subscriptions,11/11/20,COTMANHAY COMMUNITY NETWORK,250,Nov-21
Erewash Borough Council,221501,Green Space,Materials/Consumables,15/10/20,DART LTD,756,Nov-21
Erewash Borough Council,221575,Green Space,Materials/Consumables,15/10/20,DART LTD,756,Nov-21
Erewash Borough Council,221555,Street Scene,Training,15/10/20,DART LTD,291.1,Nov-21
Erewash Borough Council,221555,Green Space,Training,15/10/20,DART LTD,986.9,Nov-21
Erewash Borough Council,221807,Household/Residual Waste Collection,Repairs and Maintenance,09/10/20,DENNIS EAGLE LTD,1688.77,Nov-21
Erewash Borough Council,222205,Household/Residual Waste Collection,Repairs and Maintenance,10/11/20,DENNIS EAGLE LTD,577.14,Nov-21
Erewash Borough Council,222215,Household/Residual Waste Collection,Repairs and Maintenance,18/11/20,DENNIS EAGLE LTD,353.63,Nov-21
Erewash Borough Council,221814,Household/Residual Waste Collection,Repairs and Maintenance,26/10/20,DENNIS EAGLE LTD,3148.23,Nov-21
Erewash Borough Council,221813,Household/Residual Waste Collection,Repairs and Maintenance,29/10/20,DENNIS EAGLE LTD,1214.72,Nov-21
Erewash Borough Council,221925,Household/Residual Waste Collection,Repairs and Maintenance,02/11/20,DENNIS EAGLE LTD,325.16,Nov-21
Erewash Borough Council,221922,Household/Residual Waste Collection,Repairs and Maintenance,30/10/20,DENNIS EAGLE LTD,434.43,Nov-21
Erewash Borough Council,221812,Household/Residual Waste Collection,Repairs and Maintenance,16/10/20,DENNIS EAGLE LTD,819.3,Nov-21
Erewash Borough Council,222220,Household/Residual Waste Collection,Repairs and Maintenance,17/11/20,DENNIS EAGLE LTD,1037.92,Nov-21
Erewash Borough Council,222131,Non Domestic Rates Income and Expenditure,NNDR Tariff,19/11/20,DERBY CITY COUNCIL,520564.97,Nov-21
Erewash Borough Council,221862,Homelessness,Temporary Accommodation,01/11/20,DERBY GUESTHOUSE LIMITED,280,Nov-21
Erewash Borough Council,221850,Homelessness,Temporary Accommodation,26/08/20,DERBY GUESTHOUSE LIMITED,400,Nov-21
Erewash Borough Council,222259,Balance Sheet,Payroll Collection A/c - Credit Union,25/11/20,DERBYSHIRE COMMUNITY BANK,330,Nov-21
Erewash Borough Council,221888,Economic Development,Grants and Subscriptions,05/11/20,DERBYSHIRE COUNTY COUNCIL...,15000,Nov-21
Erewash Borough Council,221887,Balance Sheet,Grant Payments,05/10/20,DERBYSHIRE COUNTY COUNCIL...,4952.6,Nov-21
Erewash Borough Council,222054,Balance Sheet,Grant Payments,28/09/20,DERBYSHIRE COUNTY COUNCIL...,4711.5,Nov-21
Erewash Borough Council,221899,Balance Sheet,Grant Payments,22/10/20,DERBYSHIRE COUNTY COUNCIL...,5044.39,Nov-21
Erewash Borough Council,221940,Balance Sheet,Payroll Collection A/c - Superannuation,11/11/20,DERBYSHIRE COUNTY COUNCIL...,208057.39,Nov-21
Erewash Borough Council,221886,Balance Sheet,Grant Payments,29/09/20,DERBYSHIRE COUNTY COUNCIL...,4159.06,Nov-21
Erewash Borough Council,221940,Balance Sheet,Payroll Collection A/c - Purchase Added Years,11/11/20,DERBYSHIRE COUNTY COUNCIL...,283.65,Nov-21
Erewash Borough Council,222194,Economic Development,Fees Costs and Expenses,07/10/20,DERBYSHIRE COUNTY COUNCIL...,3101,Nov-21
Erewash Borough Council,222057,Local Land Charges,County Council Search Charges,27/10/20,DERBYSHIRE COUNTY COUNCIL...,5164.1,Nov-21
Erewash Borough Council,222079,Trade Waste,Waste Disposal,08/10/20,DERBYSHIRE COUNTY COUNCIL...,43946.54,Nov-21
Erewash Borough Council,222055,Balance Sheet,Grant Payments,21/10/20,DERBYSHIRE COUNTY COUNCIL...,6092.61,Nov-21
Erewash Borough Council,221818,Community Grants,Non Service Specific Grants,13/10/20,DERBYSHIRE DISTRICTS CAB,29796,Nov-21
Erewash Borough Council,221929,Green Space,Repairs and Maintenance,26/10/20,EAST MIDLANDS HYDRAULICS,320,Nov-21
Erewash Borough Council,221679,Household/Residual Waste Collection,Repairs and Maintenance,15/10/20,EAST MIDLANDS HYDRAULICS,235.98,Nov-21
Erewash Borough Council,222195,Economic Development,Project Grants,30/10/20,EASTWOOD & PARTNERS,1950,Nov-21
Erewash Borough Council,221438,Play Areas,Materials/Consumables,12/10/20,EASY GATE LTD,3495,Nov-21
Erewash Borough Council,221859,Neighbourhood Wardens,Contracted Services,01/11/20,EFFECTIVE SECURITY SERVICES LTD,3286,Nov-21
Erewash Borough Council,222193,Neighbourhood Wardens,Contracted Services,08/11/20,EFFECTIVE SECURITY SERVICES LTD,3224,Nov-21
Erewash Borough Council,221960,Balance Sheet,Car Loans to Employees,11/11/20,REDACTED PERSONAL DATA,3500,Nov-21
Erewash Borough Council,221666,Revenues and Benefits,Printing and Stationery,14/10/20,ENCORE ENVELOPES LTD,957,Nov-21
Erewash Borough Council,222264,Balance Sheet,Payroll Collection A/c - Labour Party Funds,25/11/20,EREWASH LABOUR GROUP,569.54,Nov-21
Erewash Borough Council,221831,Economic Development,Grants and Subscriptions,01/10/20,EREWASH PARTNERSHIP LTD,19625,Nov-21
Erewash Borough Council,222274,Household/Residual Waste Collection,Hire Charges,13/09/20,EUROMUNICIPAL LTD,1700,Nov-21
Erewash Borough Council,222272,Household/Residual Waste Collection,Hire Charges,19/09/20,EUROMUNICIPAL LTD,1700,Nov-21
Erewash Borough Council,222271,Household/Residual Waste Collection,Hire Charges,03/10/20,EUROMUNICIPAL LTD,950,Nov-21
Erewash Borough Council,222273,Household/Residual Waste Collection,Hire Charges,26/09/20,EUROMUNICIPAL LTD,1700,Nov-21
Erewash Borough Council,221988,Green Space,Agency Staff,02/11/20,EXTRA PERSONNEL LTD,689,Nov-21
Erewash Borough Council,222143,Street Scene,Agency Staff,09/11/20,EXTRA PERSONNEL LTD,398.65,Nov-21
Erewash Borough Council,221785,Street Scene,Agency Staff,19/10/20,EXTRA PERSONNEL LTD,341.7,Nov-21
Erewash Borough Council,222117,Household/Residual Waste Collection,Agency Staff,28/09/20,EXTRA PERSONNEL LTD,5599.63,Nov-21
Erewash Borough Council,222124,Household/Residual Waste Collection,Agency Staff,26/10/20,EXTRA PERSONNEL LTD,5140.42,Nov-21
Erewash Borough Council,222154,Street Scene,Agency Staff,09/11/20,EXTRA PERSONNEL LTD,405.3,Nov-21
Erewash Borough Council,222118,Household/Residual Waste Collection,Agency Staff,05/10/20,EXTRA PERSONNEL LTD,6447.94,Nov-21
Erewash Borough Council,221878,Green Space,Agency Staff,26/10/20,EXTRA PERSONNEL LTD,799.24,Nov-21
Erewash Borough Council,222200,Green Space,Agency Staff,02/11/20,EXTRA PERSONNEL LTD,5628.13,Nov-21
Erewash Borough Council,222152,Green Space,Agency Staff,09/11/20,EXTRA PERSONNEL LTD,689,Nov-21
Erewash Borough Council,222153,Street Scene,Agency Staff,09/11/20,EXTRA PERSONNEL LTD,3030.56,Nov-21
Erewash Borough Council,222153,Green Space,Agency Staff,09/11/20,EXTRA PERSONNEL LTD,1019.72,Nov-21
Erewash Borough Council,221879,Street Scene,Agency Staff,26/10/20,EXTRA PERSONNEL LTD,2839.37,Nov-21
Erewash Borough Council,222120,Household/Residual Waste Collection,Agency Staff,12/10/20,EXTRA PERSONNEL LTD,250.58,Nov-21
Erewash Borough Council,222200,Household/Residual Waste Collection,Agency Staff,02/11/20,EXTRA PERSONNEL LTD,2530.29,Nov-21
Erewash Borough Council,221984,Green Space,Agency Staff,02/11/20,EXTRA PERSONNEL LTD,1161.47,Nov-21
Erewash Borough Council,221987,Street Scene,Agency Staff,02/11/20,EXTRA PERSONNEL LTD,405.3,Nov-21
Erewash Borough Council,221784,Street Scene,Agency Staff,19/10/20,EXTRA PERSONNEL LTD,3525,Nov-21
Erewash Borough Council,222116,Household/Residual Waste Collection,Agency Staff,21/09/20,EXTRA PERSONNEL LTD,5797.11,Nov-21
Erewash Borough Council,222119,Household/Residual Waste Collection,Agency Staff,12/10/20,EXTRA PERSONNEL LTD,4683.97,Nov-21
Erewash Borough Council,221784,Green Space,Agency Staff,19/10/20,EXTRA PERSONNEL LTD,498.08,Nov-21
Erewash Borough Council,222179,Street Scene,Agency Staff,26/10/20,EXTRA PERSONNEL LTD,373.5,Nov-21
Erewash Borough Council,222123,Household/Residual Waste Collection,Agency Staff,26/10/20,EXTRA PERSONNEL LTD,499.87,Nov-21
Erewash Borough Council,221902,Green Space,Agency Staff,19/10/20,EXTRA PERSONNEL LTD,1019.72,Nov-21
Erewash Borough Council,222152,Street Scene,Agency Staff,09/11/20,EXTRA PERSONNEL LTD,3142.67,Nov-21
Erewash Borough Council,222121,Household/Residual Waste Collection,Agency Staff,19/10/20,EXTRA PERSONNEL LTD,4682.65,Nov-21
Erewash Borough Council,221879,Green Space,Agency Staff,26/10/20,EXTRA PERSONNEL LTD,1129.96,Nov-21
Erewash Borough Council,221902,Street Scene,Agency Staff,19/10/20,EXTRA PERSONNEL LTD,2388.67,Nov-21
Erewash Borough Council,221878,Street Scene,Agency Staff,26/10/20,EXTRA PERSONNEL LTD,3632.73,Nov-21
Erewash Borough Council,221984,Street Scene,Agency Staff,02/11/20,EXTRA PERSONNEL LTD,2785.54,Nov-21
Erewash Borough Council,221988,Street Scene,Agency Staff,02/11/20,EXTRA PERSONNEL LTD,3227.93,Nov-21
Erewash Borough Council,222146,Street Scene,Agency Staff,09/11/20,EXTRA PERSONNEL LTD,235.68,Nov-21
Erewash Borough Council,221639,Transport Trading Account,Lubricants and Anti-freeze,15/10/20,FUCHS LUBRICANTS (UK) PLC,1100,Nov-21
Erewash Borough Council,222080,Kerbside Dry Recycling Collection,Waste Disposal,31/10/20,GAE SMITH HOLDINGS T/A CASEPAK,44845.52,Nov-21
Erewash Borough Council,221916,Property and Estates,Repairs and Maintenance,20/10/20,GDUK DOOR SOLUTIONS LIMITED,215,Nov-21
Erewash Borough Council,222164,Reprographics,Printing and Stationery,02/11/20,GETTY IMAGES INTERNATIONAL,1319,Nov-21
Erewash Borough Council,221658,Green Space,Contracted Services,18/10/20,GO TRAFFIC MANAGEMENT,795,Nov-21
Erewash Borough Council,221572,Play Areas,Materials/Consumables,15/10/20,HAGSSMP,785.2,Nov-21
Erewash Borough Council,221571,Play Areas,Materials/Consumables,15/10/20,HAGSSMP,264,Nov-21
Erewash Borough Council,221680,Green Space,Repairs and Maintenance,22/10/20,HENTON & CHATTELL LTD,349.41,Nov-21
Erewash Borough Council,222260,Balance Sheet,Payroll Collection A/c - Attachment Orders,25/11/20,HMCTS,257.09,Nov-21
Erewash Borough Council,222042,Balance Sheet,Payroll Collection A/c - Income Tax,16/11/20,HMRC CUMBERNAULD,67540,Nov-21
Erewash Borough Council,222042,Balance Sheet,Payroll Collection A/c - Recovery of Student Loan,16/11/20,HMRC CUMBERNAULD,1145,Nov-21
Erewash Borough Council,222042,Balance Sheet,Payroll Collection A/c - National Insurance,16/11/20,HMRC CUMBERNAULD,101530.6,Nov-21
Erewash Borough Council,222255,Balance Sheet,Payroll Collection A/c - Income Tax,25/11/20,HMRC CUMBERNAULD,291.8,Nov-21
Erewash Borough Council,222042,Balance Sheet,Payroll Collection A/c - Statutory Maternity Pay,16/11/20,HMRC CUMBERNAULD,-278.21,Nov-21
Erewash Borough Council,222042,Personnel,Apprenticeship Levy,16/11/20,HMRC CUMBERNAULD,-1250,Nov-21
Erewash Borough Council,222042,Balance Sheet,Apprenticeship Levy,16/11/20,HMRC CUMBERNAULD,3321,Nov-21
Erewash Borough Council,222058,Green Space,General Equipment,16/09/20,HOWARDSON LTD,1223,Nov-21
Erewash Borough Council,222058,Green Space,Materials/Consumables,16/09/20,HOWARDSON LTD,0.2,Nov-21
Erewash Borough Council,221884,Green Space,Materials/Consumables,06/11/20,ILKESTON PLY & DIY LTD,247.5,Nov-21
Erewash Borough Council,222078,Car Parking,Credit/Debit Card Charges,31/10/20,INTERNATIONAL PARKING SYSTEMS UK LTD,693.88,Nov-21
Erewash Borough Council,222077,Car Parking,Credit/Debit Card Charges,30/09/20,INTERNATIONAL PARKING SYSTEMS UK LTD,411.64,Nov-21
Erewash Borough Council,221754,Training - Personnel Costs Only,Courses and Seminars,27/10/20,IRRV,555,Nov-21
Erewash Borough Council,221863,Kerbside Dry Recycling Collection,General Equipment,30/10/20,J & HM DICKSON LTD,2250,Nov-21
Erewash Borough Council,221799,Homelessness,Agency Staff,28/10/20,JAMES ANDREWS RECRUITMENT SOLUTIONS,882,Nov-21
Erewash Borough Council,221800,Insurances - (Corporate matters only),Insurance - General,08/09/20,JLT SPECIALTY LIMITED,1660,Nov-21
Erewash Borough Council,221951,Balance Sheet,Childcare Salary Sacrifice-Kiddie Vouchers,05/11/20,KIDDIVOUCHERS LTD,960.51,Nov-21
Erewash Borough Council,222083,Car Parking,Contracted Services,31/10/20,KINGS ARMOURED SECURITY SERVICES,1474.65,Nov-21
Erewash Borough Council,221840,Front Line Support Services,Security,31/10/20,KINGS ARMOURED SECURITY SERVICES,708.4,Nov-21
Erewash Borough Council,221763,Car Parking,Contracted Services,30/09/20,KINGS ARMOURED SECURITY SERVICES,1474.65,Nov-21
Erewash Borough Council,222084,Car Parking,Contracted Services,31/10/20,KINGS ARMOURED SECURITY SERVICES,261.41,Nov-21
Erewash Borough Council,221749,Green Space,Reactive Maintenance,27/10/20,KIWA LTD T/A KIWA CMT TESTING,2510,Nov-21
Erewash Borough Council,221612,ICT Support Services,Equipment Leasing Charge,19/10/20,KYOCERA DOCUMENT SOLUTIONS (UK) LTD,1723.32,Nov-21
Erewash Borough Council,221853,Finance Division,Consultants Fees,10/11/20,LAGOM ASSOCIATES LTD,750,Nov-21
Erewash Borough Council,221844,Street Scene,Contracted Services,01/10/20,LANGUARD LTD,3511.35,Nov-21
Erewash Borough Council,222113,Street Scene,Contracted Services,01/11/20,LANGUARD LTD,3511.35,Nov-21
Erewash Borough Council,221729,Green Space,Contracted Services,20/10/20,LANGUARD LTD,1175,Nov-21
Erewash Borough Council,222250,Revenues and Benefits,Software Licences,01/11/20,LEGAL ESCROW & ARBITRATION SERVICES LIMITED,560,Nov-21
Erewash Borough Council,221841,Legal Services,Reference Literature and Publications,27/10/20,LEXISNEXIS BUTTERWORTHS,432,Nov-21
Erewash Borough Council,221975,Treasury Management and Bank Charges,Lloyds Bank Charges for Debits and Credits,12/10/20,LLOYDS BANK,174.95,Nov-21
Erewash Borough Council,221975,Treasury Management and Bank Charges,Unpaid Cheque Fees,12/10/20,LLOYDS BANK,98.36,Nov-21
Erewash Borough Council,221975,Treasury Management and Bank Charges,Lloyds BACS Services,12/10/20,LLOYDS BANK,501.68,Nov-21
Erewash Borough Council,222085,Homelessness,Computer Software,30/09/20,LOCATA (HOUSING SERVICES) LTD,3750,Nov-21
Erewash Borough Council,221923,Street Scene,Tyres,31/10/20,LODGE TYRE COMPANY LTD,240,Nov-21
Erewash Borough Council,221923,Household/Residual Waste Collection,Tyres,31/10/20,LODGE TYRE COMPANY LTD,400,Nov-21
Erewash Borough Council,221923,Green Space,Tyres,31/10/20,LODGE TYRE COMPANY LTD,100,Nov-21
Erewash Borough Council,221923,Kerbside Dry Recycling Collection,Tyres,31/10/20,LODGE TYRE COMPANY LTD,925.34,Nov-21
Erewash Borough Council,221923,Trade Waste,Tyres,31/10/20,LODGE TYRE COMPANY LTD,420,Nov-21
Erewash Borough Council,222251,Community Grants,Grants and Subscriptions,25/11/20,LONG EATON & DISTRICT U3A,500,Nov-21
Erewash Borough Council,221952,Balance Sheet,ICT Works,08/11/20,MACILDOWIE RECRUITMENT EXPERTISE,1152.18,Nov-21
Erewash Borough Council,221839,Balance Sheet,ICT Works,11/10/20,MACILDOWIE RECRUITMENT EXPERTISE,1152.18,Nov-21
Erewash Borough Council,221838,Balance Sheet,ICT Works,25/10/20,MACILDOWIE RECRUITMENT EXPERTISE,1152.18,Nov-21
Erewash Borough Council,222115,Balance Sheet,ICT Works,15/11/20,MACILDOWIE RECRUITMENT EXPERTISE,1152.18,Nov-21
Erewash Borough Council,221829,Balance Sheet,ICT Works,31/10/20,MACILDOWIE RECRUITMENT EXPERTISE,1012.05,Nov-21
Erewash Borough Council,221719,Kerbside Dry Recycling Collection,Protective Clothing,14/10/20,MAIN MAN SUPPLIES LTD,283.9,Nov-21
Erewash Borough Council,222008,Street Scene,Vehicle Tracking Repairs and Maintenance,01/11/20,MASTERNAUT (UK) LTD,530.05,Nov-21
Erewash Borough Council,222008,Neighbourhood Wardens,Vehicle Tracking Repairs and Maintenance,01/11/20,MASTERNAUT (UK) LTD,313.95,Nov-21
Erewash Borough Council,222008,Kerbside Dry Recycling Collection,Vehicle Tracking Repairs and Maintenance,01/11/20,MASTERNAUT (UK) LTD,248.71,Nov-21
Erewash Borough Council,222008,Green Space,Vehicle Tracking Repairs and Maintenance,01/11/20,MASTERNAUT (UK) LTD,1121.25,Nov-21
Erewash Borough Council,222008,Property and Estates,Protective Clothing,01/11/20,MASTERNAUT (UK) LTD,44.85,Nov-21
Erewash Borough Council,222008,Household/Residual Waste Collection,Vehicle Tracking Repairs and Maintenance,01/11/20,MASTERNAUT (UK) LTD,652.36,Nov-21
Erewash Borough Council,222008,Trade Waste,Vehicle Tracking Repairs and Maintenance,01/11/20,MASTERNAUT (UK) LTD,40.78,Nov-21
Erewash Borough Council,222008,Ilkeston Admin and Courier,Vehicle Tracking Repairs and Maintenance,01/11/20,MASTERNAUT (UK) LTD,44.85,Nov-21
Erewash Borough Council,222008,Green Space,General Equipment,01/11/20,MASTERNAUT (UK) LTD,53,Nov-21
Erewash Borough Council,221832,Building Control - Fee Earning,Agency Staff,29/10/20,MATCHTECH GROUP (UK) LIMITED,2062.5,Nov-21
Erewash Borough Council,221750,Building Control - Fee Earning,Agency Staff,22/10/20,MATCHTECH GROUP (UK) LIMITED,2062.5,Nov-21
Erewash Borough Council,221580,Building Control - Fee Earning,Agency Staff,16/10/20,MATCHTECH GROUP (UK) LIMITED,2035,Nov-21
Erewash Borough Council,221510,Property and Estates,Repairs and Maintenance,09/10/20,MDB PLUMBING (NOTTM) LTD,1164.92,Nov-21
Erewash Borough Council,221615,Property and Estates,Repairs and Maintenance,13/10/20,MDB PLUMBING (NOTTM) LTD,758.7,Nov-21
Erewash Borough Council,222132,Balance Sheet,NNDR Collection Fund Control Account,19/11/20,MHCLG,1554426,Nov-21
Erewash Borough Council,222132,Balance Sheet,NNDR Collection Fund Control Account,19/11/20,MHCLG,-2318,Nov-21
Erewash Borough Council,222132,Balance Sheet,NNDR Collection Fund Control Account,19/11/20,MHCLG,-6832,Nov-21
Erewash Borough Council,222132,Non Ring Fenced Government Grants,Revenue Support Grant,19/11/20,MHCLG,-8438,Nov-21
Erewash Borough Council,221751,Erewash Museum,Conservation,09/09/20,MJ MOVERS,380,Nov-21
Erewash Borough Council,222094,Homelessness,Temporary Accommodation,28/09/20,REDACTED PERSONAL DATA,840,Nov-21
Erewash Borough Council,222095,Homelessness,Temporary Accommodation,08/10/20,REDACTED PERSONAL DATA,600,Nov-21
Erewash Borough Council,222091,Homelessness,Temporary Accommodation,23/10/20,REDACTED PERSONAL DATA,480,Nov-21
Erewash Borough Council,222092,Homelessness,Temporary Accommodation,28/09/20,REDACTED PERSONAL DATA,660,Nov-21
Erewash Borough Council,221346,Pedestrian Zones - Ilkeston and Long Eaton,Reactive Maintenance,07/10/20,N B CONSTRUCTION,650,Nov-21
Erewash Borough Council,222038,Long Service Awards,Long Service Awards,10/11/20,REDACTED PERSONAL DATA,250,Nov-21
Erewash Borough Council,222218,Green Space,Repairs and Maintenance,17/11/20,P S MARSDEN (LAWNMOWER SERVCIES) LTD,326.52,Nov-21
Erewash Borough Council,222222,Green Space,Repairs and Maintenance,12/11/20,P S MARSDEN (LAWNMOWER SERVCIES) LTD,219.69,Nov-21
Erewash Borough Council,222257,Balance Sheet,EBC Fit for Work Scheme,25/11/20,PARKWOOD LEISURE LTD,484,Nov-21
Erewash Borough Council,221673,Leisure Contract,Contracted Services,23/10/20,PARKWOOD LEISURE LTD,71866,Nov-21
Erewash Borough Council,221950,Leisure Contract,Contracted Services,21/09/20,PARKWOOD LEISURE LTD,71986,Nov-21
Erewash Borough Council,221599,Leisure Contract,Contracted Services,20/10/20,PARKWOOD LEISURE LTD,26733.42,Nov-21
Erewash Borough Council,221539,Household/Residual Waste Collection,Repairs and Maintenance,12/10/20,PARTIC MOTOR SPARES LTD,888,Nov-21
Erewash Borough Council,221735,Household/Residual Waste Collection,Repairs and Maintenance,19/10/20,PARTIC MOTOR SPARES LTD,750,Nov-21
Erewash Borough Council,221737,Household/Residual Waste Collection,Repairs and Maintenance,21/10/20,PARTIC MOTOR SPARES LTD,535,Nov-21
Erewash Borough Council,221740,Household/Residual Waste Collection,Repairs and Maintenance,26/10/20,PARTIC MOTOR SPARES LTD,525.01,Nov-21
Erewash Borough Council,221911,Property and Estates,Repairs and Maintenance,26/10/20,PEEL ELECTRICAL LTD,544.81,Nov-21
Erewash Borough Council,221515,Property and Estates,PPM Mechanical and Equipment,12/10/20,PEEL ELECTRICAL LTD,474.32,Nov-21
Erewash Borough Council,221948,Homelessness,Contracted Services,13/09/20,PEOPLE POTENTIAL POSSIBILITIES,13829.5,Nov-21
Erewash Borough Council,221947,Homelessness,Contracted Services,20/08/20,PEOPLE POTENTIAL POSSIBILITIES,13829.5,Nov-21
Erewash Borough Council,222013,Homelessness,Contracted Services,03/03/20,PEOPLE POTENTIAL POSSIBILITIES,13829.5,Nov-21
Erewash Borough Council,222013,Homelessness,Contracted Services,03/03/20,PEOPLE POTENTIAL POSSIBILITIES,13214.33,Nov-21
Erewash Borough Council,221947,Homelessness,Contracted Services,20/08/20,PEOPLE POTENTIAL POSSIBILITIES,13214.33,Nov-21
Erewash Borough Council,221949,Homelessness,Contracted Services,13/10/20,PEOPLE POTENTIAL POSSIBILITIES,13829.5,Nov-21
Erewash Borough Council,221949,Homelessness,Contracted Services,13/10/20,PEOPLE POTENTIAL POSSIBILITIES,13214.33,Nov-21
Erewash Borough Council,221948,Homelessness,Contracted Services,13/09/20,PEOPLE POTENTIAL POSSIBILITIES,13214.33,Nov-21
Erewash Borough Council,221748,Economic Development,Project Grants,18/09/20,PER CONSULTING LIMITED,12500,Nov-21
Erewash Borough Council,221742,Transport Trading Account,Lubricants and Anti-freeze,28/10/20,PERRYS,718,Nov-21
Erewash Borough Council,221633,Neighbourhood Wardens,Repairs and Maintenance,15/10/20,PERRYS,275.54,Nov-21
Erewash Borough Council,222254,Local Land Charges,Land Charges,25/11/20,PHOENIX SEARCHES LIMITED,298.8,Nov-21
Erewash Borough Council,221781,Civic Duties Hospitality,Remembrance Services,26/10/20,PICTORIAL LTD,600,Nov-21
Erewash Borough Council,222196,Planning Policy,Project Grants,12/10/20,PLANNING AND MANAGEMENT LTD,2250,Nov-21
Erewash Borough Council,221683,Green Space,Repairs and Maintenance,26/10/20,PLATTS HARRIS LIMITED,258.64,Nov-21
Erewash Borough Council,221755,Play Areas,Materials/Consumables,28/10/20,PLAYDALE PLAYGROUNDS LTD,295,Nov-21
Erewash Borough Council,221709,Community Services,General Equipment,15/10/20,PPL PRS LTD,258.2,Nov-21
Erewash Borough Council,221651,Pride In Erewash,Materials/Consumables,22/10/20,PROTECTIVE WEAR SUPPLIES LTD,208.8,Nov-21
Erewash Borough Council,222017,Economic Development,Contracted Services,01/11/20,PROXIMITY FUTURES T/A ELEPHANT WIFI,303.33,Nov-21
Erewash Borough Council,222258,Balance Sheet,Payroll Collection A/c - AVCS,25/11/20,PRUDENTIAL,2448.16,Nov-21
Erewash Borough Council,221827,Performance Management,Consultants Fees,31/10/20,Q2 LIMITED,2695,Nov-21
Erewash Borough Council,221826,Balance Sheet,Counter Fraud Fund,31/10/20,Q2 LIMITED,385,Nov-21
Erewash Borough Council,221793,Household/Residual Waste Collection,Agency Staff,15/10/20,QUALITY SERVICE RECRUITMENT LTD,600.37,Nov-21
Erewash Borough Council,221790,Household/Residual Waste Collection,Agency Staff,24/09/20,QUALITY SERVICE RECRUITMENT LTD,666.22,Nov-21
Erewash Borough Council,221793,Kerbside Dry Recycling Collection,Agency Staff,15/10/20,QUALITY SERVICE RECRUITMENT LTD,400.24,Nov-21
Erewash Borough Council,221791,Kerbside Dry Recycling Collection,Agency Staff,30/09/20,QUALITY SERVICE RECRUITMENT LTD,444.15,Nov-21
Erewash Borough Council,221792,Kerbside Dry Recycling Collection,Agency Staff,08/10/20,QUALITY SERVICE RECRUITMENT LTD,444.15,Nov-21
Erewash Borough Council,222188,Household/Residual Waste Collection,Agency Staff,12/11/20,QUALITY SERVICE RECRUITMENT LTD,530.21,Nov-21
Erewash Borough Council,222189,Household/Residual Waste Collection,Agency Staff,05/11/20,QUALITY SERVICE RECRUITMENT LTD,530.21,Nov-21
Erewash Borough Council,221790,Kerbside Dry Recycling Collection,Agency Staff,24/09/20,QUALITY SERVICE RECRUITMENT LTD,444.15,Nov-21
Erewash Borough Council,221792,Household/Residual Waste Collection,Agency Staff,08/10/20,QUALITY SERVICE RECRUITMENT LTD,666.22,Nov-21
Erewash Borough Council,221794,Kerbside Dry Recycling Collection,Agency Staff,22/10/20,QUALITY SERVICE RECRUITMENT LTD,212.08,Nov-21
Erewash Borough Council,221794,Household/Residual Waste Collection,Agency Staff,22/10/20,QUALITY SERVICE RECRUITMENT LTD,318.13,Nov-21
Erewash Borough Council,221791,Household/Residual Waste Collection,Agency Staff,30/09/20,QUALITY SERVICE RECRUITMENT LTD,666.22,Nov-21
Erewash Borough Council,222229,Household/Residual Waste Collection,Agency Staff,29/10/20,QUALITY SERVICE RECRUITMENT LTD,530.21,Nov-21
Erewash Borough Council,222056,Balance Sheet,ICT Software Licence Payment in Advance,29/10/20,QUEST SOFTWARE INTERNATIONAL LIMITED,7605.3,Nov-21
Erewash Borough Council,222006,Transport Trading Account,Agency Staff,12/10/20,QUESTECH RECRUITMENT LTD,906.5,Nov-21
Erewash Borough Council,222007,Transport Trading Account,Agency Staff,19/10/20,QUESTECH RECRUITMENT LTD,906.5,Nov-21
Erewash Borough Council,222209,Transport Trading Account,Agency Staff,16/11/20,QUESTECH RECRUITMENT LTD,906.5,Nov-21
Erewash Borough Council,222002,Transport Trading Account,Agency Staff,26/10/20,QUESTECH RECRUITMENT LTD,784,Nov-21
Erewash Borough Council,222005,Transport Trading Account,Agency Staff,05/10/20,QUESTECH RECRUITMENT LTD,906.5,Nov-21
Erewash Borough Council,222003,Transport Trading Account,Agency Staff,09/11/20,QUESTECH RECRUITMENT LTD,906.5,Nov-21
Erewash Borough Council,221944,Development Control - Fee Earning,Planning Fees,11/11/20,REDACTED PERSONAL DATA,924,Nov-21
Erewash Borough Council,222240,Building Control - Advice and Information,Contracted Services,01/11/20,RANSOMWOOD ESTATES UK LIMITED,531.67,Nov-21
Erewash Borough Council,222243,Building Control - Fee Earning,Agency Staff,13/11/20,REED SPECIALIST RECRUITMENT LTD,351.6,Nov-21
Erewash Borough Council,222244,Building Control - Fee Earning,Agency Staff,13/11/20,REED SPECIALIST RECRUITMENT LTD,351.6,Nov-21
Erewash Borough Council,221833,Building Control - Fee Earning,Agency Staff,23/10/20,REED SPECIALIST RECRUITMENT LTD,351.6,Nov-21
Erewash Borough Council,221835,Building Control - Fee Earning,Agency Staff,09/10/20,REED SPECIALIST RECRUITMENT LTD,281.28,Nov-21
Erewash Borough Council,222015,Building Control - Fee Earning,Agency Staff,30/10/20,REED SPECIALIST RECRUITMENT LTD,351.6,Nov-21
Erewash Borough Council,221834,Building Control - Fee Earning,Agency Staff,11/09/20,REED SPECIALIST RECRUITMENT LTD,395.55,Nov-21
Erewash Borough Council,222011,Community Services,General Equipment,10/11/20,RH ENVIRONMENTAL LTD,1620,Nov-21
Erewash Borough Council,221408,Green Space,Materials/Consumables,07/10/20,RIGBY TAYLOR LTD,1703.69,Nov-21
Erewash Borough Council,221728,Green Space,Materials/Consumables,23/10/20,RIGBY TAYLOR LTD,1031.25,Nov-21
Erewash Borough Council,222224,Pride In Erewash,Spend to Save,23/11/20,ROBIN TACCHI PLANTS LTD,1650.05,Nov-21
Erewash Borough Council,221848,Homelessness Prevention,Spend to Save,02/11/20,ROOF SALES & LETTINGS,650,Nov-21
Erewash Borough Council,221956,Revenues and Benefits,Postages,04/11/20,ROYAL MAIL GROUP LTD.,1196.1,Nov-21
Erewash Borough Council,221957,Revenues and Benefits,Postages,05/11/20,ROYAL MAIL GROUP LTD.,333,Nov-21
Erewash Borough Council,222185,Registration of Electors,Postages,13/11/20,ROYAL MAIL GROUP LTD.,215.73,Nov-21
Erewash Borough Council,221732,Play Areas,Materials/Consumables,27/10/20,RUSSELL LEISURE LTD,884.5,Nov-21
Erewash Borough Council,221941,Licensing - Liquor Entertainment and Other Licensing,Liqour Licencing,11/11/20,SAWLEY & LONG EATON PARK C C,480,Nov-21
Erewash Borough Council,221901,Civic Accommodation - Ilkeston,Metered Water,02/11/20,SCOTTISH WATER BUSINESS STREAM LIMITED,800.92,Nov-21
Erewash Borough Council,221901,Merlin Way Depot - Ilkeston,Metered Water,02/11/20,SCOTTISH WATER BUSINESS STREAM LIMITED,1696.63,Nov-21
Erewash Borough Council,221901,Cemeteries,Metered Water,02/11/20,SCOTTISH WATER BUSINESS STREAM LIMITED,133.65,Nov-21
Erewash Borough Council,221901,Civic Accommodation - Long Eaton,Metered Water,02/11/20,SCOTTISH WATER BUSINESS STREAM LIMITED,98.99,Nov-21
Erewash Borough Council,221901,Car Parking,Unmetered Water,02/11/20,SCOTTISH WATER BUSINESS STREAM LIMITED,2.23,Nov-21
Erewash Borough Council,221901,Shopmobility - Ilkeston,Metered Water,02/11/20,SCOTTISH WATER BUSINESS STREAM LIMITED,43.76,Nov-21
Erewash Borough Council,221901,Long Eaton Market,Metered Water,02/11/20,SCOTTISH WATER BUSINESS STREAM LIMITED,55.37,Nov-21
Erewash Borough Council,221901,Shopmobility - Long Eaton,Metered Water,02/11/20,SCOTTISH WATER BUSINESS STREAM LIMITED,4.24,Nov-21
Erewash Borough Council,221901,Erewash Museum,Unmetered Water,02/11/20,SCOTTISH WATER BUSINESS STREAM LIMITED,-15.81,Nov-21
Erewash Borough Council,221901,Public Conveniences,Metered Water,02/11/20,SCOTTISH WATER BUSINESS STREAM LIMITED,331.89,Nov-21
Erewash Borough Council,221901,Allotments,Metered Water,02/11/20,SCOTTISH WATER BUSINESS STREAM LIMITED,1518.88,Nov-21
Erewash Borough Council,221901,Green Space,Metered Water,02/11/20,SCOTTISH WATER BUSINESS STREAM LIMITED,467.42,Nov-21
Erewash Borough Council,221901,Rutland Sports Park,Metered Water,02/11/20,SCOTTISH WATER BUSINESS STREAM LIMITED,-1643.54,Nov-21
Erewash Borough Council,221901,Cotmanhay Pavilion,Unmetered Water,02/11/20,SCOTTISH WATER BUSINESS STREAM LIMITED,-93.07,Nov-21
Erewash Borough Council,222009,Erewash Museum,Subscriptions,30/10/20,SKYGUARD LIMITED,195.49,Nov-21
Erewash Borough Council,222009,Erewash Museum,Conservation,30/10/20,SKYGUARD LIMITED,42.11,Nov-21
Erewash Borough Council,222111,Green Space,Materials/Consumables,30/10/20,SLINTER MINING COMPANY,317.3,Nov-21
Erewash Borough Council,221780,Democratic Representation,Communications costs,23/10/20,SNOW ELK PRODUCTIONS,400,Nov-21
Erewash Borough Council,221897,"Police, Crime Commissioner Community Safety Grant",Project Grants,27/07/20,SOUTH DERBYSHIRE CVS.,4000,Nov-21
Erewash Borough Council,221898,"Police, Crime Commissioner Community Safety Grant",Project Grants,29/04/20,SOUTH DERBYSHIRE CVS.,4000,Nov-21
Erewash Borough Council,221856,Atmospheric Pollution,Nitrogen Dioxide Survey,16/10/20,SOUTH DERBYSHIRE DISTRICT COUNCIL,2034.69,Nov-21
Erewash Borough Council,220422,Atmospheric Pollution,Nitrogen Dioxide Survey,18/08/20,SOUTH DERBYSHIRE DISTRICT COUNCIL,1410.85,Nov-21
Erewash Borough Council,221894,Green Space,Materials/Consumables,31/10/20,STANTON RECYCLING LIMITED,442.4,Nov-21
Erewash Borough Council,221348,Erewash Museum,Goods for Resale,07/10/20,STAR EDITIONS LTD,1104.4,Nov-21
Erewash Borough Council,222086,Corporate Health and Safety,Water Testing (Legionella),29/09/20,STERILIZING SERVICES LTD,612.2,Nov-21
Erewash Borough Council,222010,Corporate Health and Safety,Water Testing (Legionella),29/10/20,STERILIZING SERVICES LTD,617.6,Nov-21
Erewash Borough Council,221762,CCTV - Ilkeston and Long Eaton,Contracted Services,07/10/20,SYNECTICS SECURITY LIMITED,7920.5,Nov-21
Erewash Borough Council,222072,Green Space,Materials/Consumables,31/10/20,T H HEATH  CONTRACTS  LTD,1220.91,Nov-21
Erewash Borough Council,221849,Green Space,Materials/Consumables,19/08/20,T H HEATH  CONTRACTS  LTD,2018,Nov-21
Erewash Borough Council,221883,Green Space,Contracted Services,31/07/20,T H HEATH  CONTRACTS  LTD,944,Nov-21
Erewash Borough Council,221334,Green Space,Contracted Services,07/10/20,T H HEATH  CONTRACTS  LTD,236,Nov-21
Erewash Borough Council,221896,Green Space,Contracted Services,31/10/20,T H HEATH  CONTRACTS  LTD,2633.32,Nov-21
Erewash Borough Council,221895,Green Space,Contracted Services,31/10/20,T H HEATH  CONTRACTS  LTD,697.59,Nov-21
Erewash Borough Council,222072,Green Space,Contracted Services,31/10/20,T H HEATH  CONTRACTS  LTD,2463.09,Nov-21
Erewash Borough Council,221335,Green Space,Contracted Services,07/10/20,T H HEATH  CONTRACTS  LTD,2633,Nov-21
Erewash Borough Council,221843,Property and Estates,Alarms Reactive Maintenance,30/10/20,TECSERV UK,214,Nov-21
Erewash Borough Council,221508,Property and Estates,Alarms Planned Maintenence,12/10/20,TECSERV UK,937.67,Nov-21
Erewash Borough Council,221918,ICT Support Services,Telephones,01/11/20,TELEPHONE TECHNOLOGY LTD,210,Nov-21
Erewash Borough Council,222133,Revenues and Benefits,Postages,31/10/20,TELSOLUTIONS LTD,751.98,Nov-21
Erewash Borough Council,221870,Balance Sheet,Fuel Store,03/11/20,TENNANTS DISTRIBUTION LTD,340,Nov-21
Erewash Borough Council,221521,Household/Residual Waste Collection,Repairs and Maintenance,09/10/20,TERBERG MATEC UK,800.42,Nov-21
Erewash Borough Council,221927,Household/Residual Waste Collection,Repairs and Maintenance,03/11/20,TERBERG MATEC UK,601.16,Nov-21
Erewash Borough Council,221927,Kerbside Dry Recycling Collection,Repairs and Maintenance,03/11/20,TERBERG MATEC UK,466.29,Nov-21
Erewash Borough Council,221688,Kerbside Dry Recycling Collection,Repairs and Maintenance,20/10/20,TERBERG MATEC UK,237.2,Nov-21
Erewash Borough Council,221687,Kerbside Dry Recycling Collection,Repairs and Maintenance,20/10/20,TERBERG MATEC UK,1023.65,Nov-21
Erewash Borough Council,222034,Pride In Erewash,Materials/Consumables,10/11/20,THE HELPING HAND COMPANY,693.6,Nov-21
Erewash Borough Council,221819,Communications,General Publicity and Promotion,30/10/20,THE SHAW TRUST LIMITED,3360,Nov-21
Erewash Borough Council,221796,Kerbside Dry Recycling Collection,Agency Staff,07/10/20,THORN BAKER LIMITED,641.73,Nov-21
Erewash Borough Council,221796,Household/Residual Waste Collection,Agency Staff,07/10/20,THORN BAKER LIMITED,962.59,Nov-21
Erewash Borough Council,222190,Household/Residual Waste Collection,Agency Staff,04/11/20,THORN BAKER LIMITED,2895.25,Nov-21
Erewash Borough Council,222191,Household/Residual Waste Collection,Agency Staff,11/11/20,THORN BAKER LIMITED,2895.25,Nov-21
Erewash Borough Council,221797,Household/Residual Waste Collection,Agency Staff,14/10/20,THORN BAKER LIMITED,1201.25,Nov-21
Erewash Borough Council,221795,Kerbside Dry Recycling Collection,Agency Staff,30/09/20,THORN BAKER LIMITED,709.51,Nov-21
Erewash Borough Council,221798,Kerbside Dry Recycling Collection,Agency Staff,21/10/20,THORN BAKER LIMITED,1109.02,Nov-21
Erewash Borough Council,221798,Household/Residual Waste Collection,Agency Staff,21/10/20,THORN BAKER LIMITED,1663.53,Nov-21
Erewash Borough Council,221797,Kerbside Dry Recycling Collection,Agency Staff,14/10/20,THORN BAKER LIMITED,800.83,Nov-21
Erewash Borough Council,222248,Household/Residual Waste Collection,Agency Staff,28/10/20,THORN BAKER LIMITED,2226.29,Nov-21
Erewash Borough Council,221795,Household/Residual Waste Collection,Agency Staff,30/09/20,THORN BAKER LIMITED,1064.27,Nov-21
Erewash Borough Council,221788,Trees Hedges and Local Nature Reserves,Contracted Services,25/08/20,TOM RICHARDS TREE SERVICES,250,Nov-21
Erewash Borough Council,221432,Trees Hedges and Local Nature Reserves,Contracted Services,09/10/20,TOM RICHARDS TREE SERVICES,700,Nov-21
Erewash Borough Council,221560,Trees Hedges and Local Nature Reserves,Contracted Services,14/10/20,TOM RICHARDS TREE SERVICES,860,Nov-21
Erewash Borough Council,221559,Trees Hedges and Local Nature Reserves,Contracted Services,14/10/20,TOM RICHARDS TREE SERVICES,520,Nov-21
Erewash Borough Council,221431,Trees Hedges and Local Nature Reserves,Contracted Services,12/10/20,TOM RICHARDS TREE SERVICES,480,Nov-21
Erewash Borough Council,221433,Trees Hedges and Local Nature Reserves,Contracted Services,08/10/20,TOM RICHARDS TREE SERVICES,1330,Nov-21
Erewash Borough Council,221562,Trees Hedges and Local Nature Reserves,Contracted Services,16/10/20,TOM RICHARDS TREE SERVICES,500,Nov-21
Erewash Borough Council,221360,Trees Hedges and Local Nature Reserves,Contracted Services,07/10/20,TOM RICHARDS TREE SERVICES,760,Nov-21
Erewash Borough Council,221561,Trees Hedges and Local Nature Reserves,Contracted Services,16/10/20,TOM RICHARDS TREE SERVICES,450,Nov-21
Erewash Borough Council,221564,Merlin Way Depot - Ilkeston,Electricity,16/10/20,TOTAL GAS & POWER LTD,1239.49,Nov-21
Erewash Borough Council,221563,Watercourse Maintenance,Electricity,14/10/20,TOTAL GAS & POWER LTD,29.64,Nov-21
Erewash Borough Council,221563,Cotmanhay Pavilion,Electricity,14/10/20,TOTAL GAS & POWER LTD,59.47,Nov-21
Erewash Borough Council,221564,Sandiacre Friesland Sports Centre,Electricity,16/10/20,TOTAL GAS & POWER LTD,301.43,Nov-21
Erewash Borough Council,221563,Car Parking,Electricity,14/10/20,TOTAL GAS & POWER LTD,599.37,Nov-21
Erewash Borough Council,221563,Ilkeston Market,Electricity,14/10/20,TOTAL GAS & POWER LTD,579.01,Nov-21
Erewash Borough Council,221563,Civic Accommodation - Long Eaton,Electricity,14/10/20,TOTAL GAS & POWER LTD,26.06,Nov-21
Erewash Borough Council,221564,Long Eaton Market,Electricity,16/10/20,TOTAL GAS & POWER LTD,138.57,Nov-21
Erewash Borough Council,221564,Green Space,Electricity,16/10/20,TOTAL GAS & POWER LTD,814.12,Nov-21
Erewash Borough Council,221563,Pewit Golf Course,Electricity,14/10/20,TOTAL GAS & POWER LTD,138.68,Nov-21
Erewash Borough Council,221691,Civic Accommodation - Long Eaton,Gas,13/10/20,TOTAL GAS & POWER LTD,296.5,Nov-21
Erewash Borough Council,221691,Rutland Sports Park,Gas,13/10/20,TOTAL GAS & POWER LTD,170.53,Nov-21
Erewash Borough Council,221563,Erewash Museum,Electricity,14/10/20,TOTAL GAS & POWER LTD,-440.12,Nov-21
Erewash Borough Council,221564,Civic Accommodation - Ilkeston,Electricity,16/10/20,TOTAL GAS & POWER LTD,1194.09,Nov-21
Erewash Borough Council,221564,Civic Accommodation - Long Eaton,Electricity,16/10/20,TOTAL GAS & POWER LTD,1523.95,Nov-21
Erewash Borough Council,221563,Public Conveniences,Electricity,14/10/20,TOTAL GAS & POWER LTD,361.82,Nov-21
Erewash Borough Council,221691,Green Space,Gas,13/10/20,TOTAL GAS & POWER LTD,401.25,Nov-21
Erewash Borough Council,221691,Civic Accommodation - Ilkeston,Gas,13/10/20,TOTAL GAS & POWER LTD,607.91,Nov-21
Erewash Borough Council,221563,Bridge Arches - Long Eaton,Electricity,14/10/20,TOTAL GAS & POWER LTD,70.9,Nov-21
Erewash Borough Council,221563,CCTV - Ilkeston and Long Eaton,Electricity,14/10/20,TOTAL GAS & POWER LTD,298.64,Nov-21
Erewash Borough Council,221563,Green Space,Electricity,14/10/20,TOTAL GAS & POWER LTD,1156.74,Nov-21
Erewash Borough Council,221691,Erewash Museum,Gas,13/10/20,TOTAL GAS & POWER LTD,109.13,Nov-21
Erewash Borough Council,221691,Bridge House - Long Eaton,Gas,13/10/20,TOTAL GAS & POWER LTD,120.24,Nov-21
Erewash Borough Council,221563,Belvoir Close Maintenance,Electricity,14/10/20,TOTAL GAS & POWER LTD,23.3,Nov-21
Erewash Borough Council,221563,Shopmobility - Long Eaton,Electricity,14/10/20,TOTAL GAS & POWER LTD,216.37,Nov-21
Erewash Borough Council,221563,Cemeteries,Electricity,14/10/20,TOTAL GAS & POWER LTD,518.49,Nov-21
Erewash Borough Council,221563,Abbotsford Community Centre,Electricity,14/10/20,TOTAL GAS & POWER LTD,293.25,Nov-21
Erewash Borough Council,221563,Shopmobility - Ilkeston,Electricity,14/10/20,TOTAL GAS & POWER LTD,57.91,Nov-21
Erewash Borough Council,221691,Merlin Way Depot - Ilkeston,Gas,13/10/20,TOTAL GAS & POWER LTD,166.16,Nov-21
Erewash Borough Council,221563,Long Eaton Market,Electricity,14/10/20,TOTAL GAS & POWER LTD,43.42,Nov-21
Erewash Borough Council,221563,Public Clocks,Electricity,14/10/20,TOTAL GAS & POWER LTD,18.37,Nov-21
Erewash Borough Council,221691,Abbotsford Community Centre,Gas,13/10/20,TOTAL GAS & POWER LTD,93.87,Nov-21
Erewash Borough Council,221691,Sandiacre Friesland Sports Centre,Gas,13/10/20,TOTAL GAS & POWER LTD,154.21,Nov-21
Erewash Borough Council,221765,Green Space,Agency Staff,16/10/20,TOTAL TRANSPORT COMPLIANCE,1100,Nov-21
Erewash Borough Council,221801,Green Space,Materials/Consumables,02/11/20,TUDOR ENVIRONMENTAL,385.6,Nov-21
Erewash Borough Council,222096,Homelessness,Temporary Accommodation,07/11/20,TUDOR LODGE HOTEL,250,Nov-21
Erewash Borough Council,222097,Homelessness,Temporary Accommodation,26/10/20,TUDOR LODGE HOTEL,350,Nov-21
Erewash Borough Council,222098,Homelessness,Temporary Accommodation,01/11/20,TUDOR LODGE HOTEL,350,Nov-21
Erewash Borough Council,222261,Balance Sheet,Payroll Collection A/c - Trade Union Subscriptions,25/11/20,UNISON,488.6,Nov-21
Erewash Borough Council,222261,Payments,Commission,25/11/20,UNISON,-7.33,Nov-21
Erewash Borough Council,221820,Play Areas,Materials/Consumables,30/10/20,USTIGATE WATERPLAY LTD,2180,Nov-21
Erewash Borough Council,222247,Environmental Protection Act,Work In Default,11/11/20,VITESSE CLEANING SOLUTIONS,650,Nov-21
Erewash Borough Council,221933,Pride In Erewash,Spend to Save,02/11/20,WHARTONS NURSERIES LTD,549.5,Nov-21
Erewash Borough Council,222051,Household/Residual Waste Collection,Agency Staff,17/10/20,WORKCHAIN LTD,1741.22,Nov-21
Erewash Borough Council,222044,Household/Residual Waste Collection,Agency Staff,29/08/20,WORKCHAIN LTD,2400.2,Nov-21
Erewash Borough Council,222046,Household/Residual Waste Collection,Agency Staff,12/09/20,WORKCHAIN LTD,1603.51,Nov-21
Erewash Borough Council,222047,Household/Residual Waste Collection,Agency Staff,19/09/20,WORKCHAIN LTD,1642.06,Nov-21
Erewash Borough Council,222049,Household/Residual Waste Collection,Agency Staff,03/10/20,WORKCHAIN LTD,1642.06,Nov-21
Erewash Borough Council,222053,Household/Residual Waste Collection,Agency Staff,31/10/20,WORKCHAIN LTD,1741.22,Nov-21
Erewash Borough Council,222045,Household/Residual Waste Collection,Agency Staff,05/09/20,WORKCHAIN LTD,2458.63,Nov-21
Erewash Borough Council,222050,Household/Residual Waste Collection,Agency Staff,10/10/20,WORKCHAIN LTD,1642.06,Nov-21
Erewash Borough Council,222052,Household/Residual Waste Collection,Agency Staff,24/10/20,WORKCHAIN LTD,1741.22,Nov-21
Erewash Borough Council,222048,Household/Residual Waste Collection,Agency Staff,26/09/20,WORKCHAIN LTD,1166.61,Nov-21
Erewash Borough Council,222043,Household/Residual Waste Collection,Agency Staff,22/08/20,WORKCHAIN LTD,2592.96,Nov-21
Erewash Borough Council,221774,ICT Support Services,Data Lines,26/10/20,ZEN INTERNET LIMITED,1367.01,Nov-21
